Workbook

Sheet Version (hidden)
A1: Service | B1: =MID(CELL("dateiname"),FIND("[",CELL("dateiname"))+1,FIND("]",CELL("dateiname"))-FIND("[",CELL("dateiname"))-1) -> 651_Auslegungstool_MDA_201030.xlsm
A2: Version: | B2: 1.0

Sheet Funktion

Sheet Auslegung
A2: Auslegung Kampmann MDA
A4: Eingabefelder sind gelb gekennzeichnet
A5: Ergebnisfelder sind blau gekennzeichnet
A7: Vorgaben
A8: Strömungstechnik und Akustik | B8: Symbol | C8: Einheit | D8: Wert
A9: Baugröße | B9: DN | C9: - | D9: 400
D10: 250
D11: 315
D12: 400
A13: Luftvolumenstrom | B13: V°SUP | C13: m³/h | D13: 180
A14: Temperatur Zuluft | B14: tSUP | C14: °C | D14: 20
A15: Temperatur Raum | B15: tRaum | C15: °C | D15: 26
A17: Raumdaten
A18: Raumhöhe | B18: H1 | C18: m | D18: 3
A19: Obergrenze Aufenthaltsbereich | B19: H2 | C19: m | D19: 1.8
A20: Raumlänge | B20: LR | C20: m | D20: 6
A21: Raumbreite | B21: BR | C21: m | D21: 9.5
A22: Abstand Durchlass zur nächstgelegenen Wand | B22: a | C22: m | D22: 1
A23: kleinster Abstand zwischen zwei Druchlässen | B23: smin | C23: m | D23: 2
A25: Akustikdaten
A26: Raumart nach VDI 2081 | D26: Verkaufsraum
D27: Einzelbüro
D28: Großraumbüro
D29: Werkstätten
D30: Ruheraum, Pausenraum
D31: Untersuchungsraum Krankenhaus
D32: Rundfunk-, Fernsehstudio
D33: Chemielabor
D34: Wasch- und WC-Raum, Umkleide
D35: Schwimmbad
D36: EDV-Raum
D37: Konzertsaal
D38: Lesesaal
D39: Museum
D40: Küche
D41: Theater, Kino
D42: Klassen- Seminarraum
D43: Gaststätte
D44: kein Typ
D45: Konferenzraum
D46: Hotelzimmer
D47: Hörsaal
D48: Bettenzimmer Krankenhaus
D49: Verkaufsraum
D50: Sporthalle
A51: Abstand zur Schallquelle | B51: r | C51: m | D51: 2
A53: Berechnung strömungstechnischer und akustischer Daten
A54: Druckverlust | B54: Δpt | C54: Pa | D54: =Rechnung!$M$10 -> 14.12053949
A55: kritischer Strahlweg | B55: xkr. | C55: m | D55: =Rechnung!$T$11 -> 0.9478853365
A56: Geschwindigkeit im Fußbodenbereich in Wandnähe | B56: vx1 | C56: m/s | D56: =IF(Rechnung!U17<0.05,"< 0,05",Rechnung!U17) -> < 0,05
A57: Zugluftrisiko am Fußboden** | B57: DR1 | C57: % | D57: =Rechnung!AR13 -> < 10
A58: Geschwindigkeit im Aufenthaltsbereich* | B58: vx2 | C58: m/s | D58: =IF(Rechnung!U18<0.05,"< 0,05",Rechnung!U18) -> 0.1144323253
A59: Zugluftrisiko im Aufenthaltsbereich** | B59: DR2 | C59: % | D59: =Rechnung!AR21 -> < 10
A60: Geschwindigkeit nach Ablösen an Xkr. | B60: vx3 | C60: m/s | D60: =IF(Rechnung!U19<0.05,"< 0,05",Rechnung!U19) -> 0.09421653557
A61: Zugluftrisiko nach Ablösepunkt** | B61: DR3 | C61: % | D61: =Rechnung!AR29 -> < 10
A62: Resultierende Raumkategorie | B62: RAL | C62: [-] | D62: =IF(AND(Rechnung!AQ13<9.95,Rechnung!AQ21<9.95,Rechnung!AQ29<9.95),"A",IF(AND(Rechnung!AQ13<19.95,Rechnung!AQ21<19.95,Rechnung!AQ29<19.95),"B",IF(AND(Rechnung!AQ13<29.95,Rechnung!AQ21<29.95,Rechnung!AQ29<29.95),"C","Außerhalb von C"))) -> A
A63: Schallleistungspegel, Zuluftdurchlass | B63: LWA_SUP/ETA | C63: dB(A) | D63: =IF(Rechnung!$B$10<25,"< 25",Rechnung!$B$10) -> < 25
A64: Schallldruckpegel in 3m Entfernung, Zuluftdurchlass | B64: LPA_SUP/ETA | C64: dB(A) | D64: =IF(Rechnung!B10+Rechnung!$B$11<25,"<25",Rechnung!B10+Rechnung!$B$11) -> <25
A65: *Gilt für Eintritt der Luftströmung in den Aufenthaltbereich nach dem Stoßpunkt
A66: ** Berechnung gemäß DIN EN ISO 7730
A69: Oktavspektrum Schallleistung | B69: LW_Okt | C69: dB
B70: LW, 125 | C70: dB | D70: =Rechnung!$BF$28 -> 23.88155382
B71: LW, 250 | C71: dB | D71: =Rechnung!$BG$28 -> 18.44468424
B72: LW, 500 | C72: dB | D72: =Rechnung!$BH$28 -> 18.67982396
B73: LW, 1000 | C73: dB | D73: =Rechnung!$BI$28 -> 15.86611338
B74: LW, 2000 | C74: dB | D74: =Rechnung!$BJ$28 -> 7.612590794
B75: LW, 4000 | C75: dB | D75: =Rechnung!$BK$28 -> 4.147095924
B76: LW, 8000 | C76: dB | D76: =Rechnung!$BL$28 -> 20.90816456
B78: Stand: | C78: =Rechnung!$G$23 -> 2020-10-30 | D78: Änderungen vorbehalten

Sheet Datenblatt
A2: Projekt: | B2: wet
A3: Beschreibung: | B3: Hier zusätzliche Informationen.
A4: Sachbearbeiter | B4: Hier Namen eintragen | E4: =TODAY() -> 2021-01-04
A6: Baugröße | B6: DN | C6: - | D6: =Auslegung!D9 -> 400
A7: Luftvolumenstrom | B7: V°SUP | C7: m³/h | D7: =Auslegung!D13 -> 180
A8: Temperatur Zuluft | B8: tSUP | C8: °C | D8: =Auslegung!D14 -> 20
A9: Temperatur Raum | B9: tRaum | C9: °C | D9: =Auslegung!D15 -> 26
A11: Raumdaten
A12: Raumhöhe | B12: H1 | C12: m | D12: 3
A13: Obergrenze Aufenthaltsbereich | B13: H2 | C13: m | D13: 1.8
A14: Raumlänge | B14: LR | C14: m | D14: 6
A15: Raumbreite | B15: BR | C15: m | D15: 9.5
A16: Abstand Durchlass zur nächstgelegenen Wand | B16: a | C16: m | D16: 2.2
A17: kleinster Abstand zwischen zwei Druchlässen | B17: smin | C17: m | D17: 1.5
A19: Strömungstechnik und Akustik
A20: Druckverlust | B20: Δpt | C20: Pa | D20: 42.61811255
A21: kritischer Strahlweg | B21: xkr. | C21: m | D21: 1.317048928
A22: Geschwindigkeit im Fußbodenbereich in Wandnähe | B22: vx1 | C22: m/s | D22: < 0,05
A23: Zugluftrisiko am Fußboden** | B23: DR1 | C23: % | D23: < 10
A24: Geschwindigkeit im Aufenthaltsbereich* | B24: vx2 | C24: m/s | D24: 0.1860935557
A25: Zugluftrisiko im Aufenthaltsbereich** | B25: DR2 | C25: % | D25: 14.6407882
A26: Geschwindigkeit nach Ablösen an Xkr. | B26: vx3 | C26: m/s | D26: 0.1093776835
A27: Zugluftrisiko nach Ablösepunkt** | B27: DR3 | C27: % | D27: < 10
A28: Resultierende Raumkategorie | B28: RAL | C28: [-] | D28: B
A29: Schallleistungspegel, Zuluftdurchlass | B29: LWA_SUP/ETA | C29: dB(A) | D29: 38.64969554
A30: Schallldruckpegel in 3m Entfernung, Zuluftdurchlass | B30: LPA_SUP/ETA | C30: dB(A) | D30: 32.13440947
A31: *Gilt für Eintritt der Luftströmung in den Aufenthaltbereich nach dem Stoßpunkt
A32: ** Berechnung gemäß DIN EN ISO 7730
A34: Oktavspektrum Schallleistung
B35: LW, 125 | C35: =[1]Auslegung!C89 -> dB | D35: =Auslegung!D70 -> 23.88155382
B36: LW, 250 | C36: =[1]Auslegung!C90 -> dB | D36: =Auslegung!D71 -> 18.44468424
B37: LW, 500 | C37: =[1]Auslegung!C91 -> dB | D37: =Auslegung!D72 -> 18.67982396
B38: LW, 1000 | C38: =[1]Auslegung!C92 -> dB | D38: =Auslegung!D73 -> 15.86611338
B39: LW, 2000 | C39: =[1]Auslegung!C93 -> dB | D39: =Auslegung!D74 -> 7.612590794
B40: LW, 4000 | C40: =[1]Auslegung!C94 -> dB | D40: =Auslegung!D75 -> 4.147095924
B41: LW, 8000 | C41: =[1]Auslegung!C95 -> dB | D41: =Auslegung!D76 -> 20.90816456
B102: Stand: | C102: =Rechnung!$G$23 -> 2020-10-30 | D102: Änderungen vorbehalten

Sheet Rechnung (hidden)
B2: Akustik | C2: I:\EMCO\daten_EK\EMCOAIR\MDA\1. Prototyp\Zusammenfassung_1.Prototyp_Akustik_190703.xlsx | M2: Druckverlust | N2: I:\EMCO\daten_EK\EMCOAIR\MDA\1. Prototyp\Druckverlustkennlinien_MDA_200214.xlsx | T2: kritischer Strahlweg | U2: I:\EMCO\daten_EK\EMCOAIR\MDA\Strömungsuntersuchungen\Bestimmung_MDA315_200218.xlsx | AD2: Geschwindigkeit an xkrit | AE2: I:\EMCO\daten_EK\EMCOAIR\MDA\Strömungsuntersuchungen\Bestimmung_MDA315_200218.xlsx | AO2: Zugluftrisiko | BD2: Oktavbänder unbewertet
B3: k1 | C3: 173.7624922 | M3: k1 | N3: 2.632253594 | T3: k1 | U3: 2.729477402 | AD3: k1 | AE3: 1.678439376 | AO3: K051 | AP3: 0.18
B4: k2 | C4: 74.17627905 | M4: k2 | N4: 1.843906763 | T4: k2 | U4: 0.9554480588 | AD4: k2 | AE4: 1.330189616 | AO4: K052 | AP4: 1 | BD4: MDA 250 | BE4: k1 | BF4: -7.68417398 | BG4: -12.82503771 | BH4: -16.96700779 | BI4: -18.07775094 | BJ4: -19.47919682 | BK4: -18.17225795 | BL4: -17.19469769 | BM4: -17.68898547 | BN4: -17.78258455 | BO4: -18.63961667 | BP4: -21.83876623 | BQ4: -25.9326978 | BR4: -31.63247792 | BS4: -36.64910862 | BT4: -37.45718372 | BU4: -35.52678155 | BV4: -34.13796387 | BW4: -30.51212725 | BX4: -22.10958538 | BY4: -10.92990998 | BZ4: -1.171607538
B5: k3 | C5: -145.8310742 | T5: k3 | U5: 0.3396481813 | AD5: k3 | AE5: 1.933462522 | BE5: k2 | BF5: 31.45575359 | BG5: 43.39605512 | BH5: 54.13547455 | BI5: 56.25018426 | BJ5: 57.35406305 | BK5: 55.15893999 | BL5: 53.54765129 | BM5: 54.78018359 | BN5: 54.91176511 | BO5: 56.91799494 | BP5: 64.11408184 | BQ5: 73.59091752 | BR5: 86.74370443 | BS5: 98.55693971 | BT5: 99.71318277 | BU5: 94.40630681 | BV5: 90.52893293 | BW5: 81.58685757 | BX5: 61.24178237 | BY5: 34.48356558 | BZ5: 11.77482895
T6: k1 | AO6: Turbulenzgrad | AP6: 40 | BE6: k3 | BF6: -14.37562927 | BG6: -24.66075665 | BH6: -32.94758567 | BI6: -35.16976125 | BJ6: -37.973284 | BK6: -35.35868076 | BL6: -33.40302932 | BM6: -34.3919463 | BN6: -34.57919285 | BO6: -36.29383397 | BP6: -42.69420645 | BQ6: -50.88475671 | BR6: -62.28804578 | BS6: -72.32462459 | BT6: -73.94119553 | BU6: -70.07900341 | BV6: -67.30036453 | BW6: -60.04621354 | BX6: -43.23549142 | BY6: -20.86868121 | BZ6: -1.345640692
AO7: 1. Zugluftrisiko im Fußbodenbereich | BD7: MDA 315 | BE7: k1 | BF7: -15.61479723 | BG7: -15.27485752 | BH7: -16.27949294 | BI7: -14.75460888 | BJ7: -14.30186601 | BK7: -15.9973037 | BL7: -17.89590187 | BM7: -19.13660921 | BN7: -17.66244592 | BO7: -19.32958155 | BP7: -23.68962833 | BQ7: -28.35947746 | BR7: -34.95315293 | BS7: -40.06572728 | BT7: -40.71375246 | BU7: -38.91869005 | BV7: -37.12738685 | BW7: -31.78032534 | BX7: -21.57289874 | BY7: -9.237971753 | BZ7: -0.1252924359
B8: Übergabe Werte: | M8: Übergabe Werte: | T8: Übergabe Werte: | AD8: Übergabe Werte: | AP8: Lauflänge | AQ8: =Rechnung!T17 -> 4.5 | BE8: k2 | BF8: 49.96845287 | BG8: 46.28763556 | BH8: 49.73105083 | BI8: 45.65114768 | BJ8: 43.56696023 | BK8: 47.15369638 | BL8: 51.99238147 | BM8: 55.65748563 | BN8: 52.0200521 | BO8: 55.62626129 | BP8: 65.05048732 | BQ8: 75.90172089 | BR8: 90.98240909 | BS8: 102.0962695 | BT8: 102.7292592 | BU8: 97.89507424 | BV8: 93.21330604 | BW8: 80.33301337 | BX8: 56.60158905 | BY8: 28.34240525 | BZ8: 8.089067086
A9: Stutzendurchmesser | B9: =IF(Auslegung!D9=250,100,IF(Auslegung!D9=315,125,IF(Auslegung!D9=400,160))) -> 160 | L9: Stutzengeschwindigkeit | M9: =(Auslegung!$D$13/3600)/(PI()*(Rechnung!B9/1000/2)^2) -> 2.486795986 | S9: Untertemperatur | T9: =Auslegung!D15-Auslegung!D14 -> 6 | AC9: Luftgeschwindigkeit | AD9: =$AE$3*$T$10*(1/($T$11+$AE$4))^$AE$5 -> 0.2135213627 | AP9: Luftgeschwindigkeit, errechnet | AQ9: =U17 -> 0.03470299135 | BE9: k3 | BF9: -30.58466706 | BG9: -29.46617903 | BH9: -31.20956684 | BI9: -27.98703048 | BJ9: -26.95702827 | BK9: -30.66171237 | BL9: -34.78084715 | BM9: -37.35538391 | BN9: -34.27104182 | BO9: -37.70833595 | BP9: -46.55844538 | BQ9: -55.96361513 | BR9: -69.25320542 | BS9: -79.49055152 | BT9: -80.7629673 | BU9: -77.17009056 | BV9: -73.53274695 | BW9: -62.63551367 | BX9: -41.99963704 | BY9: -17.16239327 | BZ9: 1.070426767
A10: Lw | B10: =$C$3+$C$4*LOG(Auslegung!D13)+$C$5*LOG(Rechnung!B9) -> 19.62103011 | L10: Druckverlust | M10: =$N$3*$M$9^$N$4 -> 14.12053949 | S10: Geschwindigkeit an Ausblaskante bei H=0,05m | T10: =(Auslegung!D13/3600)/(Auslegung!D9/1000*4*0.05) -> 0.625 | AP10: Luftgeschwindigkeit, gesetzt | AQ10: =IF(AQ9<0.05,0.05,AQ9) -> 0.05 | BD10: MDA 400 | BE10: k1 | BF10: -17.23388177 | BG10: -18.29954268 | BH10: -18.38718786 | BI10: -20.13302666 | BJ10: -20.59780011 | BK10: -18.64995233 | BL10: -19.7310749 | BM10: -19.57797329 | BN10: -19.82890195 | BO10: -21.94291805 | BP10: -24.77411255 | BQ10: -28.84165727 | BR10: -36.610544 | BS10: -42.45801039 | BT10: -41.84026821 | BU10: -40.62644448 | BV10: -39.65995901 | BW10: -33.90783388 | BX10: -21.66358949 | BY10: -7.638602715 | BZ10: 0.8362370413
A11: Pegelminderung | B11: =10*LOG(G18/(4*PI()*Auslegung!D51^2)+4/Rechnung!I18) -> -6.515286064 | S11: kritischer Strahlweg | T11: =$U$3*($T$10)^Rechnung!$U$4*(1/(Rechnung!$T$9^Rechnung!$U$5)) -> 0.9478853365 | AP11: lok. Temperaturdifferenz | AQ11: =(Auslegung!$D$15-Auslegung!$D$14)*Rechnung!$AP$3*(1/Rechnung!AQ8)^Rechnung!$AP$4 -> 0.24 | BE11: k2 | BF11: 49.23366656 | BG11: 52.1541991 | BH11: 50.24421667 | BI11: 53.77018149 | BJ11: 54.94862846 | BK11: 49.83199916 | BL11: 52.51374826 | BM11: 52.46731179 | BN11: 53.07274409 | BO11: 57.52651847 | BP11: 63.73483623 | BQ11: 72.90254478 | BR11: 89.83413723 | BS11: 102.2626967 | BT11: 100.0316803 | BU11: 96.86224488 | BV11: 94.19711378 | BW11: 80.82116395 | BX11: 53.52696364 | BY11: 22.69315391 | BZ11: 5.058882569
AP12: Absolute Temperatur | AQ12: =Auslegung!D15-Rechnung!AQ11 -> 25.76 | BE12: k3 | BF12: -33.74001964 | BG12: -35.77853023 | BH12: -35.54958241 | BI12: -39.63621473 | BJ12: -40.6663482 | BK12: -36.3774899 | BL12: -38.7389576 | BM12: -38.25742914 | BN12: -38.99608048 | BO12: -43.44295768 | BP12: -48.93836538 | BQ12: -57.02801949 | BR12: -72.92076164 | BS12: -84.77872923 | BT12: -83.25786562 | BU12: -80.9323168 | BV12: -79.09558722 | BW12: -67.27288929 | BX12: -42.09830311 | BY12: -13.47647772 | BZ12: 3.413726275
AP13: Zugluftrisiko | AQ13: =(34-AQ12)*(AQ10-0.05)^0.62*(0.37*AQ10*$AP$6+3.14) -> 0 | AR13: =IF(AQ13<10,"< 10",AQ13) -> < 10
AO15: 2. Zugluftrisiko nach Stoßpunkt | BD15: Berechnnung Terzband
F16: Nachhallzeit | G16: Richtungdfaktor | H16: Raumvolumen | I16: Absoprtionsfläche | T16: Lauflänge | U16: Luftgeschwindigkeit | AP16: Lauflänge | AQ16: =Rechnung!T18 -> 2.2
B17: T[s] nach VDI 2081 | F17: TN | G17: Q | H17: V | I17: A | S17: Geschwindigkeiten im Fußbodenbereich in Wandnähe | T17: =Auslegung!D22+Auslegung!D18+0.5 -> 4.5 | U17: =$AE$3*$T$10*(1/($AE$4+$T$17))^$AE$5 -> 0.03470299135 | AP17: Luftgeschwindigkeit, errechnet | AQ17: =U18 -> 0.1144323253 | BD17: =Auslegung!$D$9 -> 400 | BE17: k1 | BF17: =IF($BD$17=250,BF4,IF($BD$17=315,BF7,IF($BD$17=400,BF10,))) -> -17.23388177 | BG17: =IF($BD$17=250,BG4,IF($BD$17=315,BG7,IF($BD$17=400,BG10,))) -> -18.29954268 | BH17: -18.38718786 | BI17: -20.13302666 | BJ17: -20.59780011 | BK17: -18.64995233 | BL17: -19.7310749 | BM17: -19.57797329 | BN17: -19.82890195 | BO17: -21.94291805 | BP17: -24.77411255 | BQ17: -28.84165727 | BR17: -36.610544 | BS17: -42.45801039 | BT17: -41.84026821 | BU17: -40.62644448 | BV17: -39.65995901 | BW17: -33.90783388 | BX17: -21.66358949 | BY17: -7.638602715 | BZ17: 0.8362370413
B18: Raumart | D18: s | F18: =VLOOKUP(Auslegung!D26,Rechnung!B19:D42,3) -> 1 | G18: 4 | H18: =Auslegung!D18*Auslegung!D20*Auslegung!D21 -> 171 | I18: =0.163*H18/F18 -> 27.873 | S18: Geschwindigkeiten im Aufenthaltsbereich | T18: =Auslegung!D23/2+(Auslegung!D18-Auslegung!D19) -> 2.2 | U18: =($AE$3*$T$10*(1/(T18+$AE$4))^$AE$5)*1.25 -> 0.1144323253 | AP18: Luftgeschwindigkeit, gesetzt | AQ18: =IF(AQ17<0.05,0.05,AQ17) -> 0.1144323253 | BE18: k2 | BF18: =IF($BD$17=250,BF5,IF($BD$17=315,BF8,IF($BD$17=400,BF11,))) -> 49.23366656 | BG18: 52.1541991 | BH18: 50.24421667 | BI18: 53.77018149 | BJ18: 54.94862846 | BK18: 49.83199916 | BL18: 52.51374826 | BM18: 52.46731179 | BN18: 53.07274409 | BO18: 57.52651847 | BP18: 63.73483623 | BQ18: 72.90254478 | BR18: 89.83413723 | BS18: 102.2626967 | BT18: 100.0316803 | BU18: 96.86224488 | BV18: 94.19711378 | BW18: 80.82116395 | BX18: 53.52696364 | BY18: 22.69315391 | BZ18: 5.058882569
B19: Einzelbüro | D19: 0.5 | S19: Geschwindigkeiten nach Ablösen an xkrit | T19: =T11+Auslegung!D18-Auslegung!D19 -> 2.147885336 | U19: =$AE$3*$T$10*(1/($AE$4+$T$19))^$AE$5 -> 0.09421653557 | AP19: lok. Temperaturdifferenz | AQ19: =(Auslegung!$D$15-Auslegung!$D$14)*Rechnung!$AP$3*(1/Rechnung!AQ16)^Rechnung!$AP$4 -> 0.4909090909 | BE19: k3 | BF19: -33.74001964 | BG19: -35.77853023 | BH19: -35.54958241 | BI19: -39.63621473 | BJ19: -40.6663482 | BK19: -36.3774899 | BL19: -38.7389576 | BM19: -38.25742914 | BN19: -38.99608048 | BO19: -43.44295768 | BP19: -48.93836538 | BQ19: -57.02801949 | BR19: -72.92076164 | BS19: -84.77872923 | BT19: -83.25786562 | BU19: -80.9323168 | BV19: -79.09558722 | BW19: -67.27288929 | BX19: -42.09830311 | BY19: -13.47647772 | BZ19: 3.413726275
B20: Großraumbüro | D20: 0.5 | AP20: Absolute Temperatur | AQ20: =Auslegung!D15-Rechnung!AQ19 -> 25.50909091
B21: Werkstätten | D21: 1.5 | AP21: Zugluftrisiko | AQ21: =(34-AQ20)*(AQ18-0.05)^0.62*(0.37*AQ18*$AP$6+3.14) -> 7.496682461 | AR21: =IF(AQ21<10,"< 10",AQ21) -> < 10
B22: Ruheraum, Pausenraum | D22: 1
B23: Untersuchungsraum Krankenhaus | D23: 2 | F23: Stand: | G23: 2020-10-30 | AO23: 3. Zugluftrisiko nach Ablösen an X_kritisch | BD23: Stutzdendurchmesser | BG23: =B9 -> 160
B24: Rundfunk-, Fernsehstudio | D24: 0.5 | AP24: Lauflänge | AQ24: =Rechnung!T19 -> 2.147885336 | BD24: Volumenstrom | BG24: =Auslegung!$D$13 -> 180
B25: Chemielabor | D25: 2 | AP25: Luftgeschwindigkeit, errechnet | AQ25: =U19 -> 0.09421653557
B26: Wasch- und WC-Raum, Umkleide | D26: 2 | AP26: Luftgeschwindigkeit, gesetzt | AQ26: =IF(AQ25<0.05,0.05,AQ25) -> 0.09421653557 | BD26: Terzbänder | BF26: =BF17+BF18*LOG($BG$24)+BF19*LOG($BG$23) -> 19.43440126 | BG26: =BG17+BG18*LOG($BG$24)+BG19*LOG($BG$23) -> 20.46221516 | BH26: 16.57166757 | BI26: 13.77041231 | BJ26: 13.69282015 | BK26: 13.55443285 | BL26: 13.31642713 | BM26: 14.42614835 | BN26: 13.91255833 | BO26: 12.04156624 | BP26: 11.09928217 | BQ26: 9.876850207 | BR26: 5.263807817 | BS26: 1.309746653 | BT26: 0.2481047142 | BU26: -0.5602235279 | BV26: -1.555962571 | BW26: 0.08839544069 | BX26: 6.264588768 | BY26: 13.8368695 | BZ26: 19.7696581
B27: Schwimmbad | D27: 2 | AP27: lok. Temperaturdifferenz | AQ27: =(Auslegung!$D$15-Auslegung!$D$14)*Rechnung!$AP$3*(1/Rechnung!AQ24)^Rechnung!$AP$4 -> 0.5028201374
B28: EDV-Raum | D28: 1.5 | AP28: Absolute Temperatur | AQ28: =Auslegung!D15-Rechnung!AQ27 -> 25.49717986 | BD28: Oktavbänder | BF28: =10*LOG(10^(0.1*BF26)+10^(0.1*BG26)+10^(0.1*BH26)) -> 23.88155382 | BG28: =10*LOG(10^(0.1*BI26)+10^(0.1*BJ26)+10^(0.1*BK26)) -> 18.44468424 | BH28: =10*LOG(10^(0.1*BL26)+10^(0.1*BM26)+10^(0.1*BN26)) -> 18.67982396 | BI28: =10*LOG(10^(0.1*BO26)+10^(0.1*BP26)+10^(0.1*BQ26)) -> 15.86611338 | BJ28: =10*LOG(10^(0.1*BR26)+10^(0.1*BS26)+10^(0.1*BT26)) -> 7.612590794 | BK28: =10*LOG(10^(0.1*BU26)+10^(0.1*BV26)+10^(0.1*BW26)) -> 4.147095924 | BL28: =10*LOG(10^(0.1*BX26)+10^(0.1*BY26)+10^(0.1*BZ26)) -> 20.90816456
B29: Konzertsaal | D29: 1.5 | AP29: Zugluftrisiko | AQ29: =(34-AQ28)*(AQ26-0.05)^0.62*(0.37*AQ26*$AP$6+3.14) -> 5.576295695 | AR29: =IF(AQ29<10,"< 10",AQ29) -> < 10
B30: Lesesaal | D30: 1
B31: Museum | D31: 1.5
B32: Küche | D32: 1.5
B33: Theater, Kino | D33: 1
B34: Klassen- Seminarraum | D34: 1
B35: Gaststätte | D35: 1
B36: kein Typ | D36: x
B37: Konferenzraum | D37: 1
B38: Hotelzimmer | D38: 0.5
B39: Hörsaal | D39: 1
B40: Bettenzimmer Krankenhaus | D40: 1
B41: Verkaufsraum | D41: 1
B42: Sporthalle | D42: 2
B49: Gültigkeisbereich
C50: V°min | D50: V°max
B51: 250 | C51: 60 | D51: 180
B52: 315 | C52: 100 | D52: 270
B53: 400 | C53: 180 | D53: 460
B55: Übergabe
C56: =VLOOKUP(Auslegung!D9,Rechnung!B51:D53,2,FALSE) -> 180 | D56: =VLOOKUP(Auslegung!D9,Rechnung!B51:D53,3,FALSE) -> 460
